Workbook

Sheet IoTA Pricing - Devices Based
Z2: Data storage | BC2: Data storage
D3: AWS IoT Analytics - Pricing Calculator updated Feb 14, 2019 | O3: Option 1 : Estimation using devices and their data | S3: Devices | T3: 10000 | U3: 100000 | V3: 1000000 | Y3: Data processing (GB) | Z3: Processed data (GB) | AA3: Raw data - S3 | AB3: Query execution (TB) | AC3: Compute (ACU-Hours) | AF3: AWS IoT Analytics - Pricing Calculator updated Feb 01, 2019 | AR3: Option 2 : Estimation using data ingested | AV3: Data (GB) | AW3: 1 | AX3: 10 | AY3: 100 | AZ3: 1000 | BB3: Data processing (GB) | BC3: Processed data (GB) | BD3: Raw data - S3 | BE3: Query execution (TB) | BF3: Compute (ACU-Hours)
X4: US East (N. Virginia) | Y4: 0.2 | Z4: 0.03 | AA4: Ranges | AB4: 6.5 | AC4: 0.36 | BA4: US East (N. Virginia) | BB4: 0.2 | BC4: 0.03 | BD4: Ranges | BE4: 6.5 | BF4: 0.36
N5: Estimated Price (USD) | S5: Devices | T5: =D7 -> 500 | X5: US East (Ohio) | Y5: 0.2 | Z5: 0.03 | AA5: Ranges | AB5: 6.5 | AC5: 0.36 | AQ5: Estimated Price (USD) | BA5: US East (Ohio) | BB5: 0.2 | BC5: 0.03 | BD5: Ranges | BE5: 6.5 | BF5: 0.36
D6: # Devices sending data | H6: AWS Region | O6: Month | Q6: Year | S6: Messages per device | T6: =F10 -> 10764 | V6: incoming raw data | X6: US West (Oregon) | Y6: 0.2 | Z6: 0.03 | AA6: Ranges | AB6: 6.5 | AC6: 0.36 | AF6: Data Ingested per Month (GB) | AK6: AWS Region | AR6: Month | AT6: Year | AV6: Raw data | AW6: =AG16 -> 1000 | AX6: GB | AY6: stored raw | BA6: US West (Oregon) | BB6: 0.2 | BC6: 0.03 | BD6: Ranges | BE6: 6.5 | BF6: 0.36
D7: 500 | H7: US East (N. Virginia) | N7: Total | O7: =Y19 -> 344.0479159 | Q7: =Z19 -> 7626.643391 | S7: Message size | T7: =F11 -> 199510 | U7: bytes | X7: EU (Ireland) | Y7: 0.2 | Z7: 0.03 | AA7: Ranges | AB7: 6.5 | AC7: 0.36 | AF7: 1000 | AK7: US East (N. Virginia) | AQ7: Total | AR7: =BB20 -> 344.0429688 | AT7: =BC20 -> 7626.515625 | AV7: Processed data | AW7: =AG18 -> 1000 | AX7: GB | AY7: stored processed | BA7: EU (Ireland) | BB7: 0.2 | BC7: 0.03 | BD7: Ranges | BE7: 6.5 | BF7: 0.36
S8: Raw data | T8: =F16 -> 1000.019554 | U8: GB | V8: stored raw | X8: APAC (Tokyo) | Y8: 0.26 | Z8: 0.04 | AA8: Ranges | AB8: 8.45 | AC8: 0.47 | AV8: Pipeline processing | AW8: =AG11 -> 1000 | AX8: GB | BA8: APAC (Tokyo) | BB8: 0.26 | BC8: 0.04 | BD8: Ranges | BE8: 8.45 | BF8: 0.47
D9: Data Processing | I9: =Y14 -> 200.0039108 | S9: Processed message size | T9: =F11+G12-G13 -> 199510 | U9: bytes | X9: EU (Frankfurt) | Y9: 0.2 | Z9: 0.03 | AA9: Ranges | AB9: 6.5 | AC9: 0.36 | AF9: Data Processing | AK9: =BB15 -> 200 | AL9: per month | AV9: Queries | AW9: =AI23 -> 30 | BA9: EU (Frankfurt) | BB9: 0.2 | BC9: 0.03 | BD9: Ranges | BE9: 6.5 | BF9: 0.36
D10: Each device sends | F10: 10764 | G10: messages per month | S10: Processed data | T10: =E18 -> 1000.019554 | U10: GB | AV10: Each scan | AW10: =AI25 -> 100 | AX10: GB
D11: Each message size is | F11: 199510 | G11: bytes | S11: Queries | T11: =G23 -> 30 | X11: Region | Y11: Price | AF11: Sending | AG11: =AF7 -> 1000 | AH11: GB per month to be processed in a pipeline | AV11: Total data scanned | AW11: =AW10*AW9/1024 -> 2.9296875 | AX11: TB
D12: I'll enrich each message with | G12: 500 | H12: bytes per message | S12: Each scan | T12: =G25 -> 100 | U12: GB | X12: =H7 -> US East (N. Virginia) | Y12: =VLOOKUP($X$12,$X$4:$AC$9,2,FALSE) -> 0.2 | Z12: =VLOOKUP($X$12,$X$4:$AC$9,3,FALSE) -> 0.03 | AA12: =VLOOKUP($X$12,$X$4:$AC$7,4,FALSE) -> Ranges | AB12: =VLOOKUP($X$12,$X$4:$AC$9,5,FALSE) -> 6.5 | AC12: =VLOOKUP($X$12,$X$4:$AC$9,6,FALSE) -> 0.36 | AV12: Total Compute ACU Hours | AW12: =AL29*AI29 -> 200 | BA12: Region | BB12: Price
D13: I'll filter out | G13: 500 | H13: bytes per message | S13: Total data scanned | T13: =(T11*T12)/1024 -> 2.9296875 | U13: TB | X13: Input | Y13: =T8 -> 1000.019554 | Z13: =T10 -> 1000.019554 | AA13: =T8 -> 1000.019554 | AB13: =T13 -> 2.9296875 | AC13: =T21 -> 200 | BA13: =AK7 -> US East (N. Virginia) | BB13: =VLOOKUP($BA$13,$BA$4:$BF$9,2,FALSE) -> 0.2 | BC13: =VLOOKUP($BA$13,$BA$4:$BF$9,3,FALSE) -> 0.03 | BD13: =VLOOKUP($BA$13,$BA$4:$BF$9,4,FALSE) -> Ranges | BE13: =VLOOKUP($BA$13,$BA$4:$BF$9,5,FALSE) -> 6.5 | BF13: =VLOOKUP($BA$13,$BA$4:$BF$9,6,FALSE) -> 0.36
D14: Data Storage | I14: =SUM(Z14:AA14) -> 53.00103636 | X14: Calculated cost | Y14: =Y13*Y12 -> 200.0039108 | Z14: =Z13*Z12 -> 30.00058662 | AA14: =VLOOKUP(T8,$X$23:$Z$25,3,TRUE) -> 23.00044974 | AB14: 19.04296875 | AC14: =AC12*AC13 -> 72 | AF14: Data Storage | AK14: =SUM(BC15:BD15) -> 53 | AL14: per month | AV14: Raw data | AW14: 1 | AX14: =AF7 -> 1000 | BA14: Input | BB14: =AW6 -> 1000 | BC14: =AW7 -> 1000 | BD14: =AW6 -> 1000 | BE14: =AW11 -> 2.9296875 | BF14: =AW12 -> 200
K15: Months | S15: messages | T15: enrich | U15: filter | X15: With Retention | Z15: =((($K$18*$T$10)/2)*(1+$K$18)+(12-$K$18)*$K$18*$T$10)*$Z12 -> 2340.045756 | AA15: =((($K$18*$T$10)/2)*(1+$K$18)+(12-$K$18)*$K$18*$T$10)*VLOOKUP(T8,$X$23:$AA$25,4,TRUE) -> 1794.03508 | AN15: Months | AW15: 0.9 | AX15: =0.9*AF7 -> 900 | BA15: Calculated cost | BB15: =BB14*BB13 -> 200 | BC15: =BC14*BC13 -> 30 | BD15: =VLOOKUP(BD14,BA24:BC26,3,TRUE) -> 23 | BE15: =BE14*BE13 -> 19.04296875 | BF15: =BF13*BF14 -> 72
D16: The devices will send | F16: =($D$7*$F$11*$F$10)/(1024^3) -> 1000.019554 | G16: GB of raw data per month. | I16: Raw Data Retention | K16: 12 | S16: 500 | T16: 0 | U16: 0 | AF16: I'll store | AG16: =$AF$7 -> 1000 | AH16: GB of raw data per month. | AL16: Raw Data Retention | AN16: 12 | AW16: 0.75 | AX16: =0.75*AF7 -> 750 | BA16: With Retention | BC16: =((($AN$18*$AW$7)/2)*(1+$AN$18)+(12-$AN$18)*$AN$18*$AW$7)*$BC13 -> 2340 | BD16: =((($AN$16*$AW$6)/2)*(1+$AN$16)+(12-$AN$16)*$AN$16*$AW$6)*VLOOKUP(BD14,BA24:BD26,4,TRUE) -> 1794
S17: 1000 | T17: 50 | U17: 50 | Y17: Month | Z17: Year | AW17: 1.1 | AX17: =1.1*AF7 -> 1100
D18: and | E18: =($D$7*$F$10*($F$11+$G$12-$G$13))/(1024^3) -> 1000.019554 | F18: GB of processed data per month. | I18: Processed Data Retention | K18: 12 | S18: 10000 | T18: 100 | U18: 100 | X18: Per device | Y18: =Y19/T5 -> 0.6880958318 | Z18: =Z19/T5 -> 15.25328678 | AF18: and | AG18: =$AG$11 -> 1000 | AH18: GB of processed data per month. | AL18: Processed Data Retention | AN18: 12 | BB18: Month | BC18: Year
S19: 100000 | T19: 500 | U19: 250 | X19: Total | Y19: =SUM(Y14:AC14) -> 344.0479159 | Z19: =SUM(Y14,AB14,AC14)*12+Z15+AA15 -> 7626.643391 | AV19: Processed data
AW20: 1 | AX20: =AF7 -> 1000 | BA20: Total | BB20: =SUM($BB15:$BF15) -> 344.0429688 | BC20: =(SUM($BB15,$BE15,$BF15)*12)+$BC16+$BD16 -> 7626.515625
D21: Query Execution | I21: =AB14 -> 19.04296875 | S21: Total Compute ACU Hours | T21: =J29*G29 -> 200 | AF21: Query Execution | AK21: =BE15 -> 19.04296875 | AL21: per month | AW21: 0.75 | AX21: =0.75*AF7 -> 750
X22: Range 1 | Y22: Range 2 | Z22: Total Price | AA22: Price | AW22: 0.5 | AX22: =0.5*AF7 -> 500
D23: Each month, I'll execute | G23: 30 | H23: queries | X23: 0 | Y23: 50000 | Z23: =T8*AA23 -> 23.00044974 | AA23: 0.023 | AF23: Each month, I'll execute | AI23: 30 | AJ23: queries | AW23: 1.25 | AX23: =1.25*AF7 -> 1250 | BA23: Range 1 | BB23: Range 2 | BC23: Total Price | BD23: Price
X24: 50000.001 | Y24: 500000 | Z24: =AA23*Y23+AA24*(T8-Y23) -> 72.00043019 | AA24: 0.022 | BA24: 0 | BB24: 50000 | BC24: =AW6*BD24 -> 23 | BD24: 0.023
D25: Each query will scan | G25: 100 | H25: GB of data | X25: 500000.001 | Y25: =5*10^12 -> 5000000000000 | Z25: =AA23*Y23+AA24*450000+AA25*(T8-500000) -> 571.0004106 | AA25: 0.021 | AF25: Each query will scan | AI25: 100 | AJ25: GB of data | AV25: scanned <= processed data | BA25: 50000.001 | BB25: 500000 | BC25: =BD24*BB24+BD25*(AW6-BB24) -> 72 | BD25: 0.022
AV26: can't scan more than data processed | BA26: 500000.001 | BB26: =5*10^12 -> 5000000000000 | BC26: =BD24*BB24+BD25*450000+BD26*(AW6-500000) -> 571 | BD26: 0.021
D27: Custom Analysis Execution | I27: =AC14 -> 72 | S27: scanned <= processed data | AF27: Custom Analysis Execution | AK27: =BF15 -> 72 | AV27: calculate S3 tiers based on monthly raw data
S28: can't scan more than data processed
D29: Each month, I'll execute my custom container using | G29: 2 | H29: ACU | I29: for | J29: 100 | K29: hours | S29: calculate S3 tiers based on monthly raw data | AF29: Each month, I'll execute my custom container using | AI29: 2 | AJ29: ACU | AK29: for | AL29: 100 | AM29: hours
C32: This Calculator provides an estimate of usage charges for AWS services based on certain information you provide. Monthly charges will be based on your actual usage of AWS services, and may vary from the estimates the Calculator has provided. Prices effective April 24, 2018. | AE32: This Calculator provides an estimate of usage charges for AWS services based on certain information you provide. Monthly charges will be based on your actual usage of AWS services, and may vary from the estimates the Calculator has provided. Prices effective April 24, 2018.

Sheet IoTA Pricing - Data Based
Z2: Data storage | BC2: Data storage
D3: AWS IoT Analytics - Pricing Calculator updated Aug 23, 2018 | O3: Option 1 : Estimation using devices and their data | S3: Devices | T3: 10000 | U3: 100000 | V3: 1000000 | Y3: Data processing (GB) | Z3: Processed data (GB) | AA3: Raw data - S3 | AB3: Query execution (TB) | AC3: Compute (ACU-Hours) | AF3: AWS IoT Analytics - Pricing Calculator updated Feb 14, 2019 | AR3: Option 2 : Estimation using data ingested | AV3: Data (GB) | AW3: 1 | AX3: 10 | AY3: 100 | AZ3: 1000 | BB3: Data processing (GB) | BC3: Processed data (GB) | BD3: Raw data - S3 | BE3: Query execution (TB) | BF3: Compute (ACU-Hours)
X4: US East (N. Virginia) | Y4: 0.2 | Z4: 0.03 | AA4: Ranges | AB4: 6.5 | AC4: 0.36 | BA4: US East (N. Virginia) | BB4: 0.2 | BC4: 0.03 | BD4: Ranges | BE4: 6.5 | BF4: 0.36
N5: Estimated Price (USD) | S5: Devices | T5: =D7 -> 500 | X5: US East (Ohio) | Y5: 0.2 | Z5: 0.03 | AA5: Ranges | AB5: 6.5 | AC5: 0.36 | AQ5: Estimated Price (USD) | BA5: US East (Ohio) | BB5: 0.2 | BC5: 0.03 | BD5: Ranges | BE5: 6.5 | BF5: 0.36
D6: # Devices sending data | H6: AWS Region | O6: Month | Q6: Year | S6: Messages per device | T6: =F10 -> 10764 | V6: incoming raw data | X6: US West (Oregon) | Y6: 0.2 | Z6: 0.03 | AA6: Ranges | AB6: 6.5 | AC6: 0.36 | AF6: Data Ingested per Month (GB) | AK6: AWS Region | AR6: Month | AT6: Year | AV6: Raw data | AW6: =AG16 -> 1000 | AX6: GB | AY6: stored raw | BA6: US West (Oregon) | BB6: 0.2 | BC6: 0.03 | BD6: Ranges | BE6: 6.5 | BF6: 0.36
D7: 500 | H7: US East (N. Virginia) | N7: Total | O7: =Y19 -> 344.0479159 | Q7: =Z19 -> 7626.643391 | S7: Message size | T7: =F11 -> 199510 | U7: bytes | X7: EU (Ireland) | Y7: 0.2 | Z7: 0.03 | AA7: Ranges | AB7: 6.5 | AC7: 0.36 | AF7: 1000 | AK7: US East (N. Virginia) | AQ7: Total | AR7: =BB20 -> 344.0429688 | AT7: =BC20 -> 7626.515625 | AV7: Processed data | AW7: =AG18 -> 1000 | AX7: GB | AY7: stored processed | BA7: EU (Ireland) | BB7: 0.2 | BC7: 0.03 | BD7: Ranges | BE7: 6.5 | BF7: 0.36
S8: Raw data | T8: =F16 -> 1000.019554 | U8: GB | V8: stored raw | X8: APAC (Tokyo) | Y8: 0.26 | Z8: 0.04 | AA8: Ranges | AB8: 8.45 | AC8: 0.47 | AV8: Pipeline processing | AW8: =AG11 -> 1000 | AX8: GB | BA8: APAC (Tokyo) | BB8: 0.26 | BC8: 0.04 | BD8: Ranges | BE8: 8.45 | BF8: 0.47
D9: Data Processing | I9: =Y14 -> 200.0039108 | S9: Processed message size | T9: =F11+G12-G13 -> 199510 | U9: bytes | X9: EU (Frankfurt) | Y9: 0.2 | Z9: 0.03 | AA9: Ranges | AB9: 6.5 | AC9: 0.36 | AF9: Data Processing | AK9: =BB15 -> 200 | AL9: per month | AV9: Queries | AW9: =AI23 -> 30 | BA9: EU (Frankfurt) | BB9: 0.2 | BC9: 0.03 | BD9: Ranges | BE9: 6.5 | BF9: 0.36
D10: Each device sends | F10: 10764 | G10: messages per month | S10: Processed data | T10: =E18 -> 1000.019554 | U10: GB | AV10: Each scan | AW10: =AI25 -> 100 | AX10: GB
D11: Each message size is | F11: 199510 | G11: bytes | S11: Queries | T11: =G23 -> 30 | X11: Region | Y11: Price | AF11: Sending | AG11: =AF7 -> 1000 | AH11: GB per month to be processed in a pipeline | AV11: Total data scanned | AW11: =AW10*AW9/1024 -> 2.9296875 | AX11: TB
D12: I'll enrich each message with | G12: 500 | H12: bytes per message | S12: Each scan | T12: =G25 -> 100 | U12: GB | X12: =H7 -> US East (N. Virginia) | Y12: =VLOOKUP($X$12,$X$4:$AC$9,2,FALSE) -> 0.2 | Z12: =VLOOKUP($X$12,$X$4:$AC$9,3,FALSE) -> 0.03 | AA12: =VLOOKUP($X$12,$X$4:$AC$7,4,FALSE) -> Ranges | AB12: =VLOOKUP($X$12,$X$4:$AC$9,5,FALSE) -> 6.5 | AC12: =VLOOKUP($X$12,$X$4:$AC$9,6,FALSE) -> 0.36 | AV12: Total Compute ACU Hours | AW12: =AL29*AI29 -> 200 | BA12: Region | BB12: Price
D13: I'll filter out | G13: 500 | H13: bytes per message | S13: Total data scanned | T13: =(T11*T12)/1024 -> 2.9296875 | U13: TB | X13: Input | Y13: =T8 -> 1000.019554 | Z13: =T10 -> 1000.019554 | AA13: =T8 -> 1000.019554 | AB13: =T13 -> 2.9296875 | AC13: =T21 -> 200 | BA13: =AK7 -> US East (N. Virginia) | BB13: =VLOOKUP($BA$13,$BA$4:$BF$9,2,FALSE) -> 0.2 | BC13: =VLOOKUP($BA$13,$BA$4:$BF$9,3,FALSE) -> 0.03 | BD13: =VLOOKUP($BA$13,$BA$4:$BF$9,4,FALSE) -> Ranges | BE13: =VLOOKUP($BA$13,$BA$4:$BF$9,5,FALSE) -> 6.5 | BF13: =VLOOKUP($BA$13,$BA$4:$BF$9,6,FALSE) -> 0.36
D14: Data Storage | I14: =SUM(Z14:AA14) -> 53.00103636 | X14: Calculated cost | Y14: =Y13*Y12 -> 200.0039108 | Z14: =Z13*Z12 -> 30.00058662 | AA14: =VLOOKUP(T8,$X$23:$Z$25,3,TRUE) -> 23.00044974 | AB14: 19.04296875 | AC14: =AC12*AC13 -> 72 | AF14: Data Storage | AK14: =SUM(BC15:BD15) -> 53 | AL14: per month | AV14: Raw data | AW14: 1 | AX14: =AF7 -> 1000 | BA14: Input | BB14: =AW6 -> 1000 | BC14: =AW7 -> 1000 | BD14: =AW6 -> 1000 | BE14: =AW11 -> 2.9296875 | BF14: =AW12 -> 200
K15: Months | S15: messages | T15: enrich | U15: filter | X15: With Retention | Z15: =((($K$18*$T$10)/2)*(1+$K$18)+(12-$K$18)*$K$18*$T$10)*$Z12 -> 2340.045756 | AA15: =((($K$18*$T$10)/2)*(1+$K$18)+(12-$K$18)*$K$18*$T$10)*VLOOKUP(T8,$X$23:$AA$25,4,TRUE) -> 1794.03508 | AN15: Months | AW15: 0.9 | AX15: =0.9*AF7 -> 900 | BA15: Calculated cost | BB15: =BB14*BB13 -> 200 | BC15: =BC14*BC13 -> 30 | BD15: =VLOOKUP(BD14,BA24:BC26,3,TRUE) -> 23 | BE15: =BE14*BE13 -> 19.04296875 | BF15: =BF13*BF14 -> 72
D16: The devices will send | F16: =($D$7*$F$11*$F$10)/(1024^3) -> 1000.019554 | G16: GB of raw data per month. | I16: Raw Data Retention | K16: 12 | S16: 500 | T16: 0 | U16: 0 | AF16: I'll store | AG16: =$AF$7 -> 1000 | AH16: GB of raw data per month. | AL16: Raw Data Retention | AN16: 12 | AW16: 0.75 | AX16: =0.75*AF7 -> 750 | BA16: With Retention | BC16: =((($AN$18*$AW$7)/2)*(1+$AN$18)+(12-$AN$18)*$AN$18*$AW$7)*$BC13 -> 2340 | BD16: =((($AN$16*$AW$6)/2)*(1+$AN$16)+(12-$AN$16)*$AN$16*$AW$6)*VLOOKUP(BD14,BA24:BD26,4,TRUE) -> 1794
S17: 1000 | T17: 50 | U17: 50 | Y17: Month | Z17: Year | AW17: 1.1 | AX17: =1.1*AF7 -> 1100
D18: and | E18: =($D$7*$F$10*($F$11+$G$12-$G$13))/(1024^3) -> 1000.019554 | F18: GB of processed data per month. | I18: Processed Data Retention | K18: 12 | S18: 10000 | T18: 100 | U18: 100 | X18: Per device | Y18: =Y19/T5 -> 0.6880958318 | Z18: =Z19/T5 -> 15.25328678 | AF18: and | AG18: =$AG$11 -> 1000 | AH18: GB of processed data per month. | AL18: Processed Data Retention | AN18: 12 | BB18: Month | BC18: Year
S19: 100000 | T19: 500 | U19: 250 | X19: Total | Y19: =SUM(Y14:AC14) -> 344.0479159 | Z19: =SUM(Y14,AB14,AC14)*12+Z15+AA15 -> 7626.643391 | AV19: Processed data
AW20: 1 | AX20: =AF7 -> 1000 | BA20: Total | BB20: =SUM($BB15:$BF15) -> 344.0429688 | BC20: =(SUM($BB15,$BE15,$BF15)*12)+$BC16+$BD16 -> 7626.515625
D21: Query Execution | I21: =AB14 -> 19.04296875 | S21: Total Compute ACU Hours | T21: =J29*G29 -> 200 | AF21: Query Execution | AK21: =BE15 -> 19.04296875 | AL21: per month | AW21: 0.75 | AX21: =0.75*AF7 -> 750
X22: Range 1 | Y22: Range 2 | Z22: Total Price | AA22: Price | AW22: 0.5 | AX22: =0.5*AF7 -> 500
D23: Each month, I'll execute | G23: 30 | H23: queries | X23: 0 | Y23: 50000 | Z23: =T8*AA23 -> 23.00044974 | AA23: 0.023 | AF23: Each month, I'll execute | AI23: 30 | AJ23: queries | AW23: 1.25 | AX23: =1.25*AF7 -> 1250 | BA23: Range 1 | BB23: Range 2 | BC23: Total Price | BD23: Price
X24: 50000.001 | Y24: 500000 | Z24: =AA23*Y23+AA24*(T8-Y23) -> 72.00043019 | AA24: 0.022 | BA24: 0 | BB24: 50000 | BC24: =AW6*BD24 -> 23 | BD24: 0.023
D25: Each query will scan | G25: 100 | H25: GB of data | X25: 500000.001 | Y25: =5*10^12 -> 5000000000000 | Z25: =AA23*Y23+AA24*450000+AA25*(T8-500000) -> 571.0004106 | AA25: 0.021 | AF25: Each query will scan | AI25: 100 | AJ25: GB of data | AV25: scanned <= processed data | BA25: 50000.001 | BB25: 500000 | BC25: =BD24*BB24+BD25*(AW6-BB24) -> 72 | BD25: 0.022
AV26: can't scan more than data processed | BA26: 500000.001 | BB26: =5*10^12 -> 5000000000000 | BC26: =BD24*BB24+BD25*450000+BD26*(AW6-500000) -> 571 | BD26: 0.021
D27: Custom Analysis Execution | I27: =AC14 -> 72 | S27: scanned <= processed data | AF27: Custom Analysis Execution | AK27: =BF15 -> 72 | AV27: calculate S3 tiers based on monthly raw data
S28: can't scan more than data processed
D29: Each month, I'll execute my custom container using | G29: 2 | H29: ACU | I29: for | J29: 100 | K29: hours | S29: calculate S3 tiers based on monthly raw data | AF29: Each month, I'll execute my custom container using | AI29: 2 | AJ29: ACU | AK29: for | AL29: 100 | AM29: hours
C32: This Calculator provides an estimate of usage charges for AWS services based on certain information you provide. Monthly charges will be based on your actual usage of AWS services, and may vary from the estimates the Calculator has provided. Prices effective April 24, 2018. | AE32: This Calculator provides an estimate of usage charges for AWS services based on certain information you provide. Monthly charges will be based on your actual usage of AWS services, and may vary from the estimates the Calculator has provided. Prices effective April 24, 2018.
